[Event "*** Titled Tuesday Blitz"]
[Site "Chess.com"]
[Date "2020.05.05"]
[Round "9"]
[White "Sam_ChessMood"]
[Black "GigaQuparadze"]
[Result "1/2-1/2"]
[WhiteElo "2894"]
[BlackElo "2853"]
[TimeControl "180+1"]
[EndTime "11:49:15 PDT"]
[Termination "Game drawn by repetition"]

1. e4 {[%clk 0:03:00.2]} 1... c5 {[%clk 0:02:59.6]} 2. Nf3 {[%clk 0:03:00.3]}
2... e6 {[%clk 0:02:59.8]} 3. g3 {[%clk 0:02:53.1]} 3... d5 {[%clk 0:02:57.8]}
4. exd5 {[%clk 0:02:52.5]} 4... exd5 {[%clk 0:02:58.7]} 5. d4 {[%clk 0:02:52.6]}
5... Nc6 {[%clk 0:02:58.2]} 6. Bg2 {[%clk 0:02:51]} 6... Be7 {[%clk 0:02:57.4]}
7. O-O {[%clk 0:02:50.3]} 7... Nf6 {[%clk 0:02:57.6]} 8. dxc5 {[%clk 0:02:50.6]}
8... Bxc5 {[%clk 0:02:57.1]} 9. a3 {[%clk 0:02:51.2]} 9... O-O {[%clk
0:02:56.5]} 10. b4 {[%clk 0:02:51.2]} 10... Bb6 {[%clk 0:02:56.7]} 11. Nc3
{[%clk 0:02:45.9]} 11... Bg4 {[%clk 0:02:45.9]} 12. Na4 {[%clk 0:02:37.7]} 12...
Ne5 {[%clk 0:02:38.3]} 13. Nxb6 {[%clk 0:02:28.8]} 13... Qxb6 {[%clk 0:02:23.3]}
14. Bb2 {[%clk 0:02:28.7]} 14... Nxf3+ {[%clk 0:02:09.7]} 15. Bxf3 {[%clk
0:02:28.2]} 15... Bxf3 {[%clk 0:02:09.4]} 16. Qxf3 {[%clk 0:02:29.1]} 16... Rac8
{[%clk 0:02:03.2]} 17. Rad1 {[%clk 0:01:44.9]} 17... Rxc2 {[%clk 0:01:55]} 18.
Bxf6 {[%clk 0:01:44.8]} 18... Qxf6 {[%clk 0:01:54.4]} 19. Qxf6 {[%clk
0:01:44.7]} 19... gxf6 {[%clk 0:01:55.3]} 20. Rxd5 {[%clk 0:01:44.9]} 20... Ra2
{[%clk 0:01:51.8]} 21. Rd7 {[%clk 0:01:42.3]} 21... Rxa3 {[%clk 0:01:51]} 22.
Rxb7 {[%clk 0:01:42.4]} 22... Rb3 {[%clk 0:01:35.5]} 23. Ra1 {[%clk 0:01:27.3]}
23... f5 {[%clk 0:01:22.1]} 24. Raxa7 {[%clk 0:01:22.5]} 24... f4 {[%clk
0:01:22.5]} 25. gxf4 {[%clk 0:01:14.9]} 25... Rf3 {[%clk 0:01:20.6]} 26. Ra2
{[%clk 0:01:02.5]} 26... Rxf4 {[%clk 0:01:20.1]} 27. Rb2 {[%clk 0:01:00.7]}
27... Rf6 {[%clk 0:01:09.4]} 28. b5 {[%clk 0:00:54.7]} 28... Ra8 {[%clk
0:00:59]} 29. b6 {[%clk 0:00:44.8]} 29... Ra1+ {[%clk 0:00:58]} 30. Kg2 {[%clk
0:00:45]} 30... Rg6+ {[%clk 0:00:58.3]} 31. Kf3 {[%clk 0:00:44.9]} 31... Ra3+
{[%clk 0:00:58.2]} 32. Ke4 {[%clk 0:00:41]} 32... Ra4+ {[%clk 0:00:57.2]} 33.
Kd3 {[%clk 0:00:36.1]} 33... Rd6+ {[%clk 0:00:56.9]} 34. Kc3 {[%clk 0:00:33.2]}
34... Rc6+ {[%clk 0:00:56.7]} 35. Kb3 {[%clk 0:00:20.4]} 35... Ra6 {[%clk
0:00:56]} 36. Rb8+ {[%clk 0:00:20.5]} 36... Kg7 {[%clk 0:00:55.7]} 37. b7 {[%clk
0:00:21]} 37... Kf6 {[%clk 0:00:48.8]} 38. Rc8 {[%clk 0:00:12.7]} 38... Rcb6+
{[%clk 0:00:48.2]} 39. Kc3 {[%clk 0:00:10.2]} 39... Rxb2 {[%clk 0:00:48.2]} 40.
Kxb2 {[%clk 0:00:10.5]} 40... Rb6+ {[%clk 0:00:48.7]} 41. Kc3 {[%clk 0:00:11]}
41... Rxb7 {[%clk 0:00:49.6]} 42. Kd3 {[%clk 0:00:11.4]} 42... Re7 {[%clk
0:00:49.7]} 43. Rc5 {[%clk 0:00:10.2]} 43... Kg6 {[%clk 0:00:49.5]} 44. Ra5
{[%clk 0:00:09.4]} 44... f5 {[%clk 0:00:49.3]} 45. h4 {[%clk 0:00:08.7]} 45...
Re4 {[%clk 0:00:48]} 46. f3 {[%clk 0:00:09]} 46... Rxh4 {[%clk 0:00:47.7]} 47.
Ke3 {[%clk 0:00:09.5]} 47... Rb4 {[%clk 0:00:47.7]} 48. Kf2 {[%clk 0:00:09.2]}
48... Kg5 {[%clk 0:00:47.7]} 49. Kg3 {[%clk 0:00:09.7]} 49... h5 {[%clk
0:00:48]} 50. Ra8 {[%clk 0:00:09.3]} 50... h4+ {[%clk 0:00:48.3]} 51. Kh3 {[%clk
0:00:09.8]} 51... Kf4 {[%clk 0:00:48.3]} 52. Kxh4 {[%clk 0:00:09.8]} 52... Kxf3+
{[%clk 0:00:48.7]} 53. Kh3 {[%clk 0:00:10.3]} 53... f4 {[%clk 0:00:48.4]} 54.
Kh2 {[%clk 0:00:09.9]} 54... Rb2+ {[%clk 0:00:47.9]} 55. Kh3 {[%clk 0:00:09.9]}
55... Kf2 {[%clk 0:00:46.6]} 56. Kh2 {[%clk 0:00:10.3]} 56... f3 {[%clk
0:00:46.4]} 57. Ra1 {[%clk 0:00:10.2]} 57... Re2 {[%clk 0:00:45.1]} 58. Rb1
{[%clk 0:00:08.7]} 58... Re3 {[%clk 0:00:43.3]} 59. Ra1 {[%clk 0:00:07.8]} 59...
Re1 {[%clk 0:00:43.1]} 60. Ra2+ {[%clk 0:00:07.4]} 60... Re2 {[%clk 0:00:42.6]}
61. Ra1 {[%clk 0:00:07.6]} 61... Ke3+ {[%clk 0:00:42.5]} 62. Kg3 {[%clk
0:00:07.1]} 62... Rg2+ {[%clk 0:00:42.5]} 63. Kh3 {[%clk 0:00:07.6]} 63... Rg6
{[%clk 0:00:31.2]} 64. Ra3+ {[%clk 0:00:07.2]} 64... Kf4 {[%clk 0:00:30.8]} 65.
Ra4+ {[%clk 0:00:07.6]} 65... Ke3 {[%clk 0:00:30]} 66. Ra3+ {[%clk 0:00:07.8]}
66... Ke2 {[%clk 0:00:29.9]} 67. Ra2+ {[%clk 0:00:08]} 67... Kd3 {[%clk
0:00:28.7]} 68. Ra3+ {[%clk 0:00:08.4]} 68... Ke4 {[%clk 0:00:29]} 69. Ra4+
{[%clk 0:00:08.9]} 69... Ke5 {[%clk 0:00:29]} 70. Ra5+ {[%clk 0:00:08.2]} 70...
Kf4 {[%clk 0:00:29.3]} 71. Ra4+ {[%clk 0:00:07.9]} 71... Ke3 {[%clk 0:00:29.7]}
72. Ra3+ {[%clk 0:00:08.1]} 1/2-1/2

[Event "*** Titled Tuesday Blitz"]
[Site "Chess.com"]
[Date "2020.05.05"]
[Round "9"]
[White "Harsha_Bharathakoti"]
[Black "Guenplen"]
[Result "0-1"]
[WhiteElo "2822"]
[BlackElo "2946"]
[TimeControl "180+1"]
[EndTime "11:49:16 PDT"]
[Termination "Guenplen won on time"]

1. Nf3 {[%clk 0:02:59.8]} 1... d5 {[%clk 0:02:58.5]} 2. c4 {[%clk 0:02:58.5]}
2... e6 {[%clk 0:02:58.9]} 3. d4 {[%clk 0:02:57.3]} 3... Nf6 {[%clk 0:02:59]} 4.
Nc3 {[%clk 0:02:56]} 4... a6 {[%clk 0:02:58.9]} 5. cxd5 {[%clk 0:02:54.8]} 5...
exd5 {[%clk 0:02:59.8]} 6. Qb3 {[%clk 0:02:55.5]} 6... Be7 {[%clk 0:02:55.8]} 7.
Bg5 {[%clk 0:02:52.5]} 7... c6 {[%clk 0:02:55.5]} 8. e3 {[%clk 0:02:44.5]} 8...
O-O {[%clk 0:02:53.3]} 9. Bd3 {[%clk 0:02:44.9]} 9... Nbd7 {[%clk 0:02:53.4]}
10. O-O {[%clk 0:02:45.1]} 10... a5 {[%clk 0:02:51.2]} 11. Qc2 {[%clk 0:02:40]}
11... Re8 {[%clk 0:02:49]} 12. Ne5 {[%clk 0:02:39.6]} 12... Nf8 {[%clk
0:02:48.9]} 13. f4 {[%clk 0:02:40.2]} 13... Ng4 {[%clk 0:02:37.3]} 14. Bxe7
{[%clk 0:02:28.9]} 14... Rxe7 {[%clk 0:02:37.6]} 15. Rae1 {[%clk 0:02:28.2]}
15... f6 {[%clk 0:02:35.2]} 16. Nxg4 {[%clk 0:02:10.6]} 16... Bxg4 {[%clk
0:02:36.1]} 17. f5 {[%clk 0:02:11.1]} 17... Bh5 {[%clk 0:02:31.8]} 18. Qf2
{[%clk 0:02:02.2]} 18... Bf7 {[%clk 0:02:18.8]} 19. Qg3 {[%clk 0:01:18.3]} 19...
Qc7 {[%clk 0:02:15.5]} 20. Qxc7 {[%clk 0:01:18.1]} 20... Rxc7 {[%clk 0:02:16.4]}
21. Na4 {[%clk 0:01:11.9]} 21... Nd7 {[%clk 0:02:12.4]} 22. Kf2 {[%clk
0:01:06.7]} 22... Re8 {[%clk 0:01:48.5]} 23. Rc1 {[%clk 0:01:06.5]} 23... Rcc8
{[%clk 0:01:47.3]} 24. Rc3 {[%clk 0:01:03.9]} 24... Kf8 {[%clk 0:01:38.4]} 25.
Rfc1 {[%clk 0:01:02.5]} 25... Ra8 {[%clk 0:01:36.5]} 26. Rb3 {[%clk 0:01:01.5]}
26... Ra7 {[%clk 0:01:36.6]} 27. g4 {[%clk 0:00:55.1]} 27... h6 {[%clk
0:01:36.2]} 28. h3 {[%clk 0:00:54.9]} 28... Ke7 {[%clk 0:01:36.3]} 29. a3 {[%clk
0:00:40.8]} 29... Kd6 {[%clk 0:01:35.1]} 30. Nc5 {[%clk 0:00:35.7]} 30... Nxc5
{[%clk 0:01:33.2]} 31. Rxc5 {[%clk 0:00:36.6]} 31... Rh8 {[%clk 0:01:23.4]} 32.
Be2 {[%clk 0:00:34.3]} 32... h5 {[%clk 0:01:20.9]} 33. Kg2 {[%clk 0:00:34]}
33... g6 {[%clk 0:01:14.7]} 34. fxg6 {[%clk 0:00:33.1]} 34... Bxg6 {[%clk
0:01:14.8]} 35. Bf3 {[%clk 0:00:33.8]} 35... hxg4 {[%clk 0:01:08.3]} 36. hxg4
{[%clk 0:00:34.7]} 36... f5 {[%clk 0:01:01.7]} 37. gxf5 {[%clk 0:00:33.7]} 37...
Bxf5 {[%clk 0:01:02.6]} 38. Rc1 {[%clk 0:00:34]} 38... a4 {[%clk 0:00:48.8]} 39.
Rbc3 {[%clk 0:00:29.3]} 39... Raa8 {[%clk 0:00:48.5]} 40. Rh1 {[%clk 0:00:29.6]}
40... Rxh1 {[%clk 0:00:40.5]} 41. Kxh1 {[%clk 0:00:29.9]} 41... Rg8 {[%clk
0:00:41.4]} 42. Kh2 {[%clk 0:00:30.3]} 42... b6 {[%clk 0:00:38.7]} 43. Rc1
{[%clk 0:00:30.3]} 43... Re8 {[%clk 0:00:34]} 44. Re1 {[%clk 0:00:25.4]} 44...
c5 {[%clk 0:00:34.3]} 45. dxc5+ {[%clk 0:00:23.7]} 45... bxc5 {[%clk 0:00:35.2]}
46. Kg3 {[%clk 0:00:18.6]} 46... d4 {[%clk 0:00:30.9]} 47. Kf2 {[%clk
0:00:13.1]} 47... Rf8 {[%clk 0:00:20.6]} 48. Ke2 {[%clk 0:00:09.7]} 48... d3+
{[%clk 0:00:11.3]} 49. Kd2 {[%clk 0:00:09.2]} 49... Be6 {[%clk 0:00:11.8]} 50.
Be4 {[%clk 0:00:08.3]} 50... c4 {[%clk 0:00:12.2]} 51. Kc3 {[%clk 0:00:04.9]}
51... Rf2 {[%clk 0:00:11.3]} 52. Rg1 {[%clk 0:00:02.2]} 52... Rc2+ {[%clk
0:00:09]} 53. Kd4 {[%clk 0:00:02.5]} 53... Rxb2 {[%clk 0:00:09.9]} 54. Rg6
{[%clk 0:00:01.5]} 54... d2 {[%clk 0:00:09.6]} 55. Bf3 {[%clk 0:00:02.2]} 55...
Rb3 {[%clk 0:00:03.9]} 56. Be2 {[%clk 0:00:02.1]} 56... Rxa3 {[%clk 0:00:03.4]}
0-1

[Event "*** Titled Tuesday Blitz"]
[Site "Chess.com"]
[Date "2020.05.05"]
[Round "9"]
[White "suneebaker"]
[Black "Justinz"]
[Result "1-0"]
[WhiteElo "2191"]
[BlackElo "2310"]
[TimeControl "180+1"]
[EndTime "11:49:17 PDT"]
[Termination "suneebaker won by resignation"]

1. d4 {[%clk 0:03:00.9]} 1... Nf6 {[%clk 0:02:59.1]} 2. Nf3 {[%clk 0:03:00.1]}
2... e6 {[%clk 0:02:59.1]} 3. g3 {[%clk 0:02:58.9]} 3... d5 {[%clk 0:02:58.7]}
4. Bg2 {[%clk 0:02:58.9]} 4... Be7 {[%clk 0:02:59.2]} 5. O-O {[%clk 0:02:58.9]}
5... O-O {[%clk 0:02:59.7]} 6. c4 {[%clk 0:02:59]} 6... dxc4 {[%clk 0:03:00.2]}
7. Qc2 {[%clk 0:02:58.6]} 7... a6 {[%clk 0:03:00.6]} 8. Qxc4 {[%clk 0:02:58.2]}
8... b5 {[%clk 0:03:00]} 9. Qc2 {[%clk 0:02:58.1]} 9... Bb7 {[%clk 0:03:00.6]}
10. Bd2 {[%clk 0:02:52.9]} 10... Nc6 {[%clk 0:02:58.9]} 11. e3 {[%clk
0:02:50.2]} 11... Rc8 {[%clk 0:02:50.5]} 12. Ne5 {[%clk 0:02:46.6]} 12... Nxe5
{[%clk 0:02:15]} 13. Bxb7 {[%clk 0:02:45.1]} 13... Nc4 {[%clk 0:02:14.7]} 14.
Bxc8 {[%clk 0:02:44.3]} 14... Qxc8 {[%clk 0:02:14.8]} 15. b3 {[%clk 0:02:43.7]}
15... Nb6 {[%clk 0:02:13.7]} 16. Nc3 {[%clk 0:02:43.2]} 16... Qb7 {[%clk
0:02:12.6]} 17. Rac1 {[%clk 0:02:41.5]} 17... c5 {[%clk 0:02:12.6]} 18. dxc5
{[%clk 0:02:40]} 18... Bxc5 {[%clk 0:02:13.1]} 19. Ne2 {[%clk 0:02:24.4]} 19...
Ba3 {[%clk 0:02:11.5]} 20. Qc6 {[%clk 0:02:20.1]} 20... Qb8 {[%clk 0:02:07]} 21.
Rcd1 {[%clk 0:02:00.8]} 21... Nfd5 {[%clk 0:02:03.9]} 22. Qc2 {[%clk 0:01:49.6]}
22... Rc8 {[%clk 0:02:00.2]} 23. Qe4 {[%clk 0:01:49.1]} 23... Nf6 {[%clk
0:01:55.1]} 24. Qf3 {[%clk 0:01:47.8]} 24... Nbd5 {[%clk 0:01:51.9]} 25. Nd4
{[%clk 0:01:42.9]} 25... h6 {[%clk 0:01:49.9]} 26. Bc1 {[%clk 0:01:39.8]} 26...
Bf8 {[%clk 0:01:48.8]} 27. Bb2 {[%clk 0:01:39.2]} 27... b4 {[%clk 0:01:44.2]}
28. Rc1 {[%clk 0:01:37.6]} 28... Nc3 {[%clk 0:01:43.7]} 29. Bxc3 {[%clk
0:01:34.9]} 29... bxc3 {[%clk 0:01:44.6]} 30. Ne2 {[%clk 0:01:33.2]} 30... Qe5
{[%clk 0:01:24.6]} 31. Rc2 {[%clk 0:01:27.9]} 31... Ne4 {[%clk 0:01:18.5]} 32.
Rfc1 {[%clk 0:01:25.1]} 32... Ba3 {[%clk 0:01:17]} 33. Rd1 {[%clk 0:01:16.3]}
33... Ng5 {[%clk 0:01:06.4]} 34. Qb7 {[%clk 0:01:14.9]} 34... Rc7 {[%clk
0:00:57.9]} 35. Qb8+ {[%clk 0:01:01.2]} 35... Kh7 {[%clk 0:00:55.8]} 36. Rxc3
{[%clk 0:01:00.5]} 36... Nf3+ {[%clk 0:00:53.7]} 37. Kg2 {[%clk 0:00:56.6]}
37... Rxc3 {[%clk 0:00:53.5]} 38. Qxe5 {[%clk 0:00:54.7]} 38... Nxe5 {[%clk
0:00:53.3]} 39. Nxc3 {[%clk 0:00:54.5]} 39... g5 {[%clk 0:00:47.2]} 40. f4
{[%clk 0:00:50.4]} 40... Ng4 {[%clk 0:00:46.7]} 41. Rd3 {[%clk 0:00:46.5]} 41...
Bc1 {[%clk 0:00:44.8]} 42. Nd1 {[%clk 0:00:45.7]} 42... Kg6 {[%clk 0:00:40.7]}
43. h3 {[%clk 0:00:45.6]} 43... Nf6 {[%clk 0:00:40.5]} 44. Kf3 {[%clk
0:00:43.7]} 44... Nd5 {[%clk 0:00:40.2]} 45. e4 {[%clk 0:00:37.8]} 45... Nb4
{[%clk 0:00:40.1]} 46. Rd6 {[%clk 0:00:36.6]} 46... a5 {[%clk 0:00:33.6]} 47. a4
{[%clk 0:00:34.3]} 47... gxf4 {[%clk 0:00:31.1]} 48. gxf4 {[%clk 0:00:33.3]}
48... h5 {[%clk 0:00:32]} 49. Rb6 {[%clk 0:00:30.5]} 49... Nd3 {[%clk
0:00:28.5]} 50. Ne3 {[%clk 0:00:27]} 50... Ba3 {[%clk 0:00:22.4]} 51. Rb5 {[%clk
0:00:25.6]} 51... Bb4 {[%clk 0:00:22.1]} 52. Nc4 {[%clk 0:00:21.7]} 52... Ne1+
{[%clk 0:00:13.8]} 53. Kg3 {[%clk 0:00:21.4]} 53... Nc2 {[%clk 0:00:10.3]} 54.
Ne5+ {[%clk 0:00:20.9]} 54... Kf6 {[%clk 0:00:09.5]} 55. Rb7 {[%clk 0:00:20.7]}
55... Be7 {[%clk 0:00:07.6]} 56. Nd7+ {[%clk 0:00:19.5]} 56... Kg7 {[%clk
0:00:06.7]} 57. Nb6 {[%clk 0:00:19.4]} 57... Bb4 {[%clk 0:00:06.2]} 58. Nc4
{[%clk 0:00:18.1]} 58... Nd4 {[%clk 0:00:06.3]} 59. f5 {[%clk 0:00:16.5]} 59...
exf5 {[%clk 0:00:05.9]} 60. exf5 {[%clk 0:00:16.7]} 60... Nxb3 {[%clk
0:00:06.8]} 61. Kf4 {[%clk 0:00:16.4]} 61... Bc5 {[%clk 0:00:04.9]} 62. Ne5
{[%clk 0:00:15.5]} 62... Bd6 {[%clk 0:00:04.5]} 63. Rxb3 {[%clk 0:00:14.8]}
63... f6 {[%clk 0:00:02.9]} 64. Rb7+ {[%clk 0:00:15.4]} 64... Kh6 {[%clk
0:00:02.2]} 65. Ke4 {[%clk 0:00:14.6]} 65... Bxe5 {[%clk 0:00:02]} 66. Rb5
{[%clk 0:00:15.1]} 66... Kg5 {[%clk 0:00:02.9]} 67. Rxa5 {[%clk 0:00:15]} 67...
Kh4 {[%clk 0:00:03.8]} 68. Rxe5 {[%clk 0:00:14.9]} 68... Kxh3 {[%clk 0:00:04.7]}
69. Re8 {[%clk 0:00:14.1]} 69... Kg4 {[%clk 0:00:03.9]} 70. Rg8+ {[%clk
0:00:14.4]} 1-0

[Event "*** Titled Tuesday Blitz"]
[Site "Chess.com"]
[Date "2020.05.05"]
[Round "9"]
[White "korkmaz16"]
[Black "dianosky"]
[Result "1-0"]
[WhiteElo "2328"]
[BlackElo "2441"]
[TimeControl "180+1"]
[EndTime "11:49:20 PDT"]
[Termination "korkmaz16 won on time"]

1. e4 {[%clk 0:03:00.9]} 1... c5 {[%clk 0:02:59.8]} 2. Nf3 {[%clk 0:02:59.9]}
2... a6 {[%clk 0:03:00]} 3. d4 {[%clk 0:02:59.8]} 3... cxd4 {[%clk 0:03:00.5]}
4. Nxd4 {[%clk 0:03:00.7]} 4... Nf6 {[%clk 0:03:00.8]} 5. Nc3 {[%clk 0:02:56.7]}
5... e5 {[%clk 0:03:00.6]} 6. Nf3 {[%clk 0:02:46.5]} 6... Bb4 {[%clk 0:03:00.3]}
7. Bc4 {[%clk 0:01:57.9]} 7... Qc7 {[%clk 0:02:58.8]} 8. Qd3 {[%clk 0:01:55.3]}
8... b5 {[%clk 0:02:35.1]} 9. Bb3 {[%clk 0:01:53.9]} 9... Bb7 {[%clk 0:02:31.1]}
10. Bd2 {[%clk 0:01:20.7]} 10... d6 {[%clk 0:02:10.5]} 11. Nd5 {[%clk
0:01:18.8]} 11... Bxd2+ {[%clk 0:02:07.4]} 12. Nxd2 {[%clk 0:01:18.5]} 12...
Bxd5 {[%clk 0:02:05.5]} 13. Bxd5 {[%clk 0:01:19.4]} 13... Nc6 {[%clk 0:01:57]}
14. c3 {[%clk 0:01:18.5]} 14... O-O {[%clk 0:01:55.5]} 15. O-O {[%clk 0:01:18]}
15... Nxd5 {[%clk 0:01:52.8]} 16. Qxd5 {[%clk 0:01:16.5]} 16... Ne7 {[%clk
0:01:53.2]} 17. Qd3 {[%clk 0:01:15.9]} 17... Rad8 {[%clk 0:01:54]} 18. Rad1
{[%clk 0:01:12.7]} 18... d5 {[%clk 0:01:53.8]} 19. Nb3 {[%clk 0:01:04.9]} 19...
dxe4 {[%clk 0:01:38.8]} 20. Qxe4 {[%clk 0:01:04.7]} 20... f5 {[%clk 0:01:39]}
21. Qb4 {[%clk 0:01:01.7]} 21... Kf7 {[%clk 0:01:18.9]} 22. Qc5 {[%clk
0:00:57.2]} 22... Qxc5 {[%clk 0:01:11.2]} 23. Nxc5 {[%clk 0:00:58.1]} 23... a5
{[%clk 0:01:11.5]} 24. Nd7 {[%clk 0:00:57.6]} 24... e4 {[%clk 0:00:42.9]} 25.
Nxf8 {[%clk 0:00:56.8]} 25... Rxf8 {[%clk 0:00:43.3]} 26. f3 {[%clk 0:00:54.2]}
26... e3 {[%clk 0:00:42.3]} 27. Rfe1 {[%clk 0:00:53.4]} 27... f4 {[%clk
0:00:42.4]} 28. g3 {[%clk 0:00:48.1]} 28... g5 {[%clk 0:00:42.4]} 29. Kg2 {[%clk
0:00:42.3]} 29... Ke6 {[%clk 0:00:40.3]} 30. Rd4 {[%clk 0:00:40.4]} 30... Nc6
{[%clk 0:00:29.4]} 31. Re4+ {[%clk 0:00:37.6]} 31... Kd5 {[%clk 0:00:29.7]} 32.
Rd1+ {[%clk 0:00:35]} 32... Kc5 {[%clk 0:00:30.1]} 33. Rd7 {[%clk 0:00:32.7]}
33... h6 {[%clk 0:00:22.8]} 34. b3 {[%clk 0:00:30.1]} 34... Rf6 {[%clk
0:00:18.7]} 35. a3 {[%clk 0:00:29.9]} 35... b4 {[%clk 0:00:13.4]} 36. axb4+
{[%clk 0:00:26.8]} 36... axb4 {[%clk 0:00:13.7]} 37. c4 {[%clk 0:00:21.8]} 37...
Rd6 {[%clk 0:00:10.6]} 38. Rxd6 {[%clk 0:00:19]} 38... Kxd6 {[%clk 0:00:10.8]}
39. gxf4 {[%clk 0:00:19.9]} 39... gxf4 {[%clk 0:00:10.7]} 40. Rxf4 {[%clk
0:00:20.3]} 40... Na5 {[%clk 0:00:09.5]} 41. Re4 {[%clk 0:00:19.2]} 41... Nxb3
{[%clk 0:00:09.5]} 42. Rxe3 {[%clk 0:00:19.3]} 42... Na5 {[%clk 0:00:10.1]} 43.
Kf2 {[%clk 0:00:16.6]} 43... Nxc4 {[%clk 0:00:08.3]} 44. Re4 {[%clk 0:00:16.6]}
44... Kd5 {[%clk 0:00:08.3]} 45. Ke2 {[%clk 0:00:15.5]} 45... b3 {[%clk
0:00:08.1]} 46. Kd3 {[%clk 0:00:16]} 46... Ne5+ {[%clk 0:00:06.4]} 47. Kc3
{[%clk 0:00:15.5]} 47... Nxf3 {[%clk 0:00:06.8]} 48. Re8 {[%clk 0:00:14.4]}
48... Nxh2 {[%clk 0:00:05.3]} 49. Rh8 {[%clk 0:00:13.4]} 49... Ng4 {[%clk
0:00:05.4]} 50. Rg8 {[%clk 0:00:13.6]} 50... Ne5 {[%clk 0:00:01.8]} 51. Rh8
{[%clk 0:00:12.1]} 51... Nf7 {[%clk 0:00:01.2]} 52. Rh7 {[%clk 0:00:11.7]} 52...
Ke6 {[%clk 0:00:01.6]} 53. Rg7 {[%clk 0:00:10.7]} 53... Kf6 {[%clk 0:00:01.8]}
54. Rg1 {[%clk 0:00:10.7]} 54... h5 {[%clk 0:00:02.7]} 55. Kxb3 {[%clk
0:00:10.8]} 55... h4 {[%clk 0:00:03.1]} 56. Kc3 {[%clk 0:00:11.2]} 56... h3
{[%clk 0:00:03.5]} 57. Kd3 {[%clk 0:00:10.1]} 57... Ng5 {[%clk 0:00:02.7]} 58.
Ke3 {[%clk 0:00:09.6]} 58... Kf5 {[%clk 0:00:03]} 59. Kf2 {[%clk 0:00:09.2]}
59... Kf4 {[%clk 0:00:03.5]} 60. Ra1 {[%clk 0:00:07.4]} 60... Ne4+ {[%clk
0:00:02.6]} 61. Kg1 {[%clk 0:00:07.7]} 1-0

[Event "*** Titled Tuesday Blitz"]
[Site "Chess.com"]
[Date "2020.05.05"]
[Round "9"]
[White "EugeneRougon"]
[Black "Gurvich_Vitaly"]
[Result "0-1"]
[WhiteElo "2733"]
[BlackElo "2564"]
[TimeControl "180+1"]
[EndTime "11:49:22 PDT"]
[Termination "Gurvich_Vitaly won on time"]

1. e4 {[%clk 0:03:00.9]} 1... c5 {[%clk 0:02:51]} 2. Nf3 {[%clk 0:03:00.5]} 2...
Nc6 {[%clk 0:02:50.1]} 3. Bb5 {[%clk 0:03:00]} 3... g6 {[%clk 0:02:49.9]} 4.
Bxc6 {[%clk 0:03:00.2]} 4... dxc6 {[%clk 0:02:50.8]} 5. d3 {[%clk 0:03:00.3]}
5... Bg7 {[%clk 0:02:51.3]} 6. h3 {[%clk 0:03:00.7]} 6... b6 {[%clk 0:02:51.3]}
7. Nc3 {[%clk 0:02:57.1]} 7... e5 {[%clk 0:02:51.5]} 8. O-O {[%clk 0:02:56.1]}
8... Ne7 {[%clk 0:02:50.7]} 9. Nh2 {[%clk 0:02:51.8]} 9... h6 {[%clk 0:02:49.9]}
10. Be3 {[%clk 0:02:42.1]} 10... g5 {[%clk 0:02:48.9]} 11. Ne2 {[%clk
0:02:39.6]} 11... Ng6 {[%clk 0:02:48.2]} 12. Ng3 {[%clk 0:02:37]} 12... Nf4
{[%clk 0:02:45.2]} 13. Nf5 {[%clk 0:02:29.2]} 13... Bxf5 {[%clk 0:02:43.7]} 14.
exf5 {[%clk 0:02:30.1]} 14... Qd5 {[%clk 0:02:43.5]} 15. Bxf4 {[%clk 0:02:25.5]}
15... exf4 {[%clk 0:02:44.4]} 16. Re1+ {[%clk 0:02:24.7]} 16... Kd7 {[%clk
0:02:43.7]} 17. Qh5 {[%clk 0:02:15.8]} 17... Qxf5 {[%clk 0:02:40.4]} 18. c3
{[%clk 0:02:09.4]} 18... Rae8 {[%clk 0:02:39.1]} 19. a4 {[%clk 0:01:44.6]} 19...
a5 {[%clk 0:02:38]} 20. Nf1 {[%clk 0:01:12.7]} 20... Rxe1 {[%clk 0:02:27.3]} 21.
Rxe1 {[%clk 0:01:13.6]} 21... Re8 {[%clk 0:02:27.3]} 22. Rd1 {[%clk 0:01:13.8]}
22... Qg6 {[%clk 0:02:25.2]} 23. Qf3 {[%clk 0:01:08.1]} 23... Qe6 {[%clk
0:02:20.2]} 24. d4 {[%clk 0:00:31.3]} 24... cxd4 {[%clk 0:02:16.6]} 25. cxd4
{[%clk 0:00:32.2]} 25... Qe2 {[%clk 0:02:12.3]} 26. Qb3 {[%clk 0:00:32.3]} 26...
Ke7 {[%clk 0:01:01]} 27. Rd2 {[%clk 0:00:19.5]} 27... Qa6 {[%clk 0:00:59.8]} 28.
Qa3+ {[%clk 0:00:17.5]} 28... Kd7 {[%clk 0:00:57.8]} 29. Qb3 {[%clk 0:00:13.4]}
29... Re7 {[%clk 0:00:54.4]} 30. d5 {[%clk 0:00:13.2]} 30... c5 {[%clk
0:00:54.7]} 31. d6 {[%clk 0:00:12.9]} 31... Re6 {[%clk 0:00:55]} 32. Qd5 {[%clk
0:00:10.4]} 32... Bd4 {[%clk 0:00:46.7]} 33. Qf5 {[%clk 0:00:08.4]} 33... Qc8
{[%clk 0:00:39.4]} 34. Qxf7+ {[%clk 0:00:08]} 34... Kxd6 {[%clk 0:00:39.8]} 35.
Qf5 {[%clk 0:00:04.2]} 35... Qe8 {[%clk 0:00:38.4]} 36. Qc2 {[%clk 0:00:02.8]}
36... Re1 {[%clk 0:00:35.7]} 37. Qd3 {[%clk 0:00:02]} 37... Kc7 {[%clk
0:00:32.6]} 38. Qa6 {[%clk 0:00:01.9]} 38... Qc6 {[%clk 0:00:28.6]} 39. Qc4
{[%clk 0:00:01.9]} 39... Qe6 {[%clk 0:00:19.7]} 40. Qa6 {[%clk 0:00:01.1]} 40...
Qe8 {[%clk 0:00:15.8]} 41. Qc4 {[%clk 0:00:01.2]} 41... Kb7 {[%clk 0:00:14.5]}
42. Kh2 {[%clk 0:00:01.1]} 42... h5 {[%clk 0:00:09.2]} 43. Qb5 {[%clk
0:00:01.4]} 43... Qxb5 {[%clk 0:00:08.3]} 44. axb5 {[%clk 0:00:02.3]} 44... g4
{[%clk 0:00:08.8]} 45. hxg4 {[%clk 0:00:02.5]} 45... hxg4 {[%clk 0:00:09.7]} 46.
g3 {[%clk 0:00:03.4]} 46... f3 {[%clk 0:00:09.9]} 47. Rc2 {[%clk 0:00:03.9]}
47... a4 {[%clk 0:00:09.9]} 48. Rc4 {[%clk 0:00:03.2]} 48... Rxf1 {[%clk
0:00:10.1]} 49. b3 {[%clk 0:00:01.1]} 49... Rxf2+ {[%clk 0:00:10.2]} 50. Kh1
{[%clk 0:00:02]} 50... a3 {[%clk 0:00:08]} 51. Ra4 {[%clk 0:00:02.1]} 51... a2
{[%clk 0:00:07.8]} 52. b4 {[%clk 0:00:02.7]} 52... Rb2 {[%clk 0:00:06.7]} 53.
bxc5 {[%clk 0:00:02.7]} 53... Rb1+ {[%clk 0:00:06.9]} 54. Kh2 {[%clk 0:00:02.8]}
54... Bg1+ {[%clk 0:00:05.3]} 55. Kh1 {[%clk 0:00:02.5]} 55... Bxc5+ {[%clk
0:00:06.2]} 56. Kh2 {[%clk 0:00:03.4]} 56... Rb2+ {[%clk 0:00:04.6]} 57. Kh1
{[%clk 0:00:03.3]} 57... Rxb5 {[%clk 0:00:04.5]} 58. Rxa2 {[%clk 0:00:03.1]}
58... Bd6 {[%clk 0:00:03.6]} 59. Kh2 {[%clk 0:00:04]} 59... Rc5 {[%clk
0:00:03.1]} 60. Rd2 {[%clk 0:00:03.2]} 60... Kc6 {[%clk 0:00:03.7]} 61. Ra2
{[%clk 0:00:02.9]} 61... b5 {[%clk 0:00:04.6]} 62. Ra6+ {[%clk 0:00:03]} 62...
Kd5 {[%clk 0:00:05.5]} 63. Ra2 {[%clk 0:00:02.6]} 63... b4 {[%clk 0:00:05.8]}
64. Rb2 {[%clk 0:00:02.5]} 64... Kc6 {[%clk 0:00:06.5]} 65. Rd2 {[%clk
0:00:01.2]} 65... b3 {[%clk 0:00:05.7]} 0-1